fUSD/lending_fUSD_20240109
["ID","MTS","AMOUNT","RATE_DAILY","PERIOD"]
[310963171,1704835988086,-626.68,0.00041424,30]
[310963172,1704835988096,-886.46,0.00041424,30]
[310963173,1704835988105,-1955.03,0.00041424,30]
[310963174,1704835988114,-500.0,0.00041424,30]
[310963175,1704835988123,-991.57,0.00041424,30]
[310963176,1704835988133,-1009.87,0.00041424,7]
[310963177,1704835988143,-500.0,0.00041424,30]
[310963178,1704835988153,-500.0,0.00041424,30]
[310963179,1704835988164,-500.0,0.00041424,30]
[310963180,1704835988174,-828.51,0.00041424,30]
[310963181,1704835988183,-500.0,0.00041424,30]
[310963182,1704835988192,-500.0,0.00041424,30]
[310963183,1704835988202,-2108.88,0.00041424,30]
[310963184,1704835988211,-1931.34,0.00041424,30]
[310963185,1704835988221,-822.65,0.00041424,30]
[310963186,1704835988231,-3347.6,0.00041424,30]
[310963187,1704835988240,-14790.64,0.00041424,30]
[310963188,1704835988250,-500.0,0.00041424,7]
[310963189,1704835988259,-500.0,0.00041424,30]
[310963190,1704835988269,-500.0,0.00041424,30]
[310963191,1704835988279,-500.0,0.00041424,30]
[310963192,1704835988288,-1430.23,0.00041424,30]
[310963193,1704835988298,-5678.13,0.00041424,30]
[310963194,1704835988307,-610.39,0.00041424,30]
[310963195,1704835988317,-1617.86,0.00041424,30]
[310963196,1704835988327,-1087.77,0.00041424,30]
[310963197,1704835988337,-500.0,0.00041424,30]
[310963198,1704835988347,-733.18,0.00041424,30]
[310963199,1704835988357,-2799.84,0.00041424,30]
[310963200,1704835988366,-500.0,0.00041424,30]
[310963201,1704835988376,-2846.34,0.00041424,30]
[310963202,1704835988385,-796.49,0.00041424,30]
[310963203,1704835988395,-500.0,0.00041424,30]
[310963204,1704835988407,-243.77682399,0.00041424,30]
[310963205,1704835988417,-500.0,0.00041424,30]
[310963206,1704835988427,-317.79627486,0.00041424,30]
[310963207,1704835988437,-500.0,0.00041424,30]
[310963208,1704835988446,-1593.04,0.00041424,30]
[310963209,1704835988456,-500.0,0.00041424,30]
[310963210,1704835988465,-500.0,0.00041424,30]
[310963211,1704835988475,-1520.5,0.00041424,30]
[310963212,1704835988485,-502.92,0.00041424,30]
[310963213,1704835988494,-1804.05,0.00041424,30]
[310963214,1704835988504,-539.66,0.00041424,30]
[310963215,1704835988515,-857.84,0.00041424,30]
[310963216,1704835988525,-500.0,0.00041424,30]
[310963217,1704835988534,-1689.37,0.00041424,30]
[310963218,1704835988544,-1039.06,0.00041424,30]
[310963219,1704835988553,-4621.51,0.00041424,30]
[310963220,1704835988563,-500.0,0.00041424,30]
[310963221,1704835988573,-704.14,0.00041424,30]
[310963222,1704835988582,-1420.75,0.00041424,30]
[310963223,1704835988591,-500.0,0.00041424,30]
[310963224,1704835988600,-4643.53,0.00041424,30]
[310963225,1704835988610,-500.0,0.00041424,30]
[310963226,1704835988620,-3385.64,0.00041424,30]
[310963227,1704835988630,-571.44,0.00041424,30]
[310963228,1704835988639,-500.0,0.00041424,30]
[310963229,1704835988649,-500.0,0.00041424,30]
[310963230,1704835988662,-500.0,0.00041424,30]
[310963231,1704835988671,-526.00021446,0.00041424,30]
[310963232,1704835988680,-500.0,0.00041424,30]
[310963233,1704835988690,-2540.83,0.00041424,30]
[310963234,1704835988699,-965.39,0.00041424,30]
[310963235,1704835988708,-500.0,0.00041424,30]
[310963236,1704835988718,-791.0,0.00041424,30]
[310963237,1704835988728,-2213.16,0.00041424,30]
[310963238,1704835988737,-500.0,0.00041424,30]
[310963239,1704835988747,-273.53665132,0.00041424,30]
[310963240,1704835988756,-846.61,0.00041424,30]
[310963241,1704835988765,-2650.5,0.00041424,30]
[310963242,1704835988774,-786.95,0.00041424,30]
[310963243,1704835988783,-500.0,0.00041424,30]
[310963244,1704835988793,-500.0,0.00041424,30]
[310963245,1704835988802,-500.0,0.00041424,30]
[310963246,1704835988812,-1349.94,0.00041424,30]
[310963247,1704835988821,-832.69,0.00041424,30]
[310963248,1704835988831,-2311.91,0.00041424,30]
[310963249,1704835988840,-500.0,0.00041424,30]
[310963250,1704835988850,-1396.93,0.00041424,30]
[310963251,1704835988860,-14690.46,0.00041424,30]
[310963252,1704835988869,-500.0,0.00041424,30]
[310963253,1704835988878,-500.0,0.00041424,30]
[310963254,1704835988888,-2102.03,0.00041424,30]
[310963255,1704835988898,-500.0,0.00041424,30]
[310963256,1704835988909,-6568.56,0.00041424,30]
[310963257,1704835988918,-3431.96,0.00041424,30]
[310963258,1704835988927,-2567.2,0.00041424,30]
[310963259,1704835988937,-534.6,0.00041424,30]
[310963260,1704835988946,-500.0,0.00041424,30]
[310963261,1704835988954,-4057.32,0.00041424,30]
[310963262,1704835988963,-1036.03,0.00041424,30]
[310963263,1704835988972,-5465.29,0.00041424,30]
[310963264,1704835988982,-1046.98,0.00041424,30]
[310963265,1704835988991,-707.65,0.00041424,30]
[310963266,1704835989000,-558.03,0.00041424,30]
[310963267,1704835989010,-503.66,0.00041424,30]
[310963268,1704835989019,-3677.68,0.00041424,30]
[310963269,1704835989029,-500.0,0.00041424,30]
[310963270,1704835989038,-500.0,0.00041424,30]
[310963271,1704835989047,-2255.93,0.00041424,30]
[310963272,1704835989056,-2496.21,0.00041424,30]
[310963273,1704835989066,-2311.14,0.00041424,30]
[310963274,1704835989075,-3376.56,0.00041424,30]
[310963275,1704835989084,-692.76,0.00041424,30]
[310963276,1704835989094,-1358.66,0.00041424,30]
[310963277,1704835989103,-769.11,0.00041424,30]
[310963278,1704835989112,-500.0,0.00041424,30]
[310963279,1704835989121,-500.0,0.00041424,30]
[310963280,1704835989131,-1845.73,0.00041424,30]
[310963281,1704835989140,-13108.96,0.00041424,30]
[310963282,1704835989150,-500.0,0.00041424,30]
[310963283,1704835989162,-500.0,0.00041424,30]
[310963284,1704835989172,-9899.51,0.00041424,30]
[310963285,1704835989181,-1387.57,0.00041424,30]
[310963287,1704835989191,-500.0,0.00041424,2]
[310963288,1704835989200,-1436.88,0.00041424,30]
[310963289,1704835989210,-10579.54,0.00041424,30]
[310963290,1704835989219,-1868.59,0.00041424,30]
[310963291,1704835989228,-500.0,0.00041424,30]
[310963292,1704835989238,-1636.08,0.00041424,30]
[310963293,1704835989248,-780.53,0.00041424,30]
[310963294,1704835989257,-583.25,0.00041424,30]
[310963295,1704835989267,-7300.87,0.00041424,30]
[310963296,1704835989276,-500.0,0.00041424,30]
[310963297,1704835989286,-1200.98,0.00041424,30]
[310963298,1704835989297,-2024.47,0.00041424,30]
[310963299,1704835989306,-1010.7,0.00041424,30]
[310963300,1704835989316,-500.0,0.00041424,30]
[310963301,1704835989325,-1279.36,0.00041424,30]
[310963302,1704835989335,-829.24,0.00041424,30]
[310963303,1704835989344,-663.65,0.00041424,30]
[310963304,1704835989354,-1022.82,0.00041424,30]
[310963305,1704835989365,-500.0,0.00041424,30]
[310963306,1704835989375,-1276.96,0.00041424,30]
[310963307,1704835989385,-719.05,0.00041424,30]
[310963308,1704835989394,-5923.58,0.00041424,30]
[310963309,1704835989410,-500.0,0.00041424,30]
[310963310,1704835989419,-1955.18,0.00041424,30]
[310963311,1704835989428,-1076.29,0.00041424,30]
[310963312,1704835989438,-3773.23,0.00041424,30]
[310963313,1704835989449,-1442.56,0.00041424,30]
[310963314,1704835989459,-3976.14,0.00041424,30]
[310963315,1704835989469,-2969.33,0.00041424,30]
[310963316,1704835989478,-500.0,0.00041424,30]
[310963317,1704835989490,-1085.14,0.00041424,30]
[310963318,1704835989500,-500.0,0.00041424,5]
[310963319,1704835989508,-546.98,0.00041424,30]
[310963320,1704835989518,-1958.44,0.00041424,30]
[310963321,1704835989528,-500.0,0.00041424,30]
[310963322,1704835989537,-500.0,0.00041424,30]
[310963323,1704835989547,-6261.12,0.00041424,30]
[310963324,1704835989556,-1066.92,0.00041424,30]
[310963325,1704835989566,-500.0,0.00041424,30]
[310963326,1704835989575,-645.66,0.00041424,30]
[310963327,1704835989585,-1757.07,0.00041424,30]
[310963328,1704835989595,-894.85,0.00041424,30]
[310963329,1704835989604,-2874.62,0.00041424,30]
[310963330,1704835989614,-3862.71,0.00041424,30]
[310963331,1704835989623,-4543.27,0.00041424,30]
[310963332,1704835989633,-500.0,0.00041424,30]
[310963333,1704835989642,-1341.14,0.00041424,30]
[310963334,1704835989652,-577.82,0.00041424,30]
[310963335,1704835989663,-500.0,0.00041424,30]
[310963336,1704835989672,-901.82,0.00041424,30]
[310963337,1704835989682,-500.0,0.00041424,30]
[310963338,1704835989691,-500.0,0.00041424,30]
[310963339,1704835989700,-3856.08,0.00041424,30]
[310963340,1704835989709,-1349.44,0.00041424,30]
[310963341,1704835989718,-500.0,0.00041424,30]
[310963342,1704835989728,-1130.33,0.00041424,30]
[310963343,1704835989738,-588.78,0.00041424,30]
[310963344,1704835989746,-1641.57,0.00041424,30]
[310963345,1704835989756,-500.0,0.00041424,30]
[310963346,1704835989765,-760.68,0.00041424,30]
[310963347,1704835989775,-1586.06,0.00041424,30]
[310963348,1704835989785,-857.88,0.00041424,30]
[310963349,1704835989794,-3762.07,0.00041424,30]
[310963350,1704835989804,-500.0,0.00041424,30]
[310963351,1704835989814,-536.72,0.00041424,30]
[310963352,1704835989824,-550.1,0.00041424,30]
[310963353,1704835989833,-500.0,0.00041424,30]
[310963354,1704835989842,-4420.44,0.00041424,30]
[310963355,1704835989852,-4355.86,0.00041424,30]
[310963356,1704835989862,-1511.36,0.00041424,30]
[310963357,1704835989871,-500.0,0.00041424,30]
[310963358,1704835989881,-1161.02,0.00041424,30]
[310963359,1704835989890,-10725.89,0.00041424,30]
[310963360,1704835989899,-500.0,0.00041424,30]
[310963361,1704835989912,-500.0,0.00041424,30]
[310963362,1704835989921,-1044.46,0.00041424,30]
[310963363,1704835989930,-500.0,0.00041424,30]
[310963364,1704835989940,-929.83,0.00041424,30]
[310963365,1704835989950,-867.5,0.00041424,30]
[310963366,1704835989960,-720.34,0.00041424,30]
[310963367,1704835989969,-524.95627085,0.00041424,30]
[310963368,1704835989980,-6977.93,0.00041424,30]
[310963369,1704835989989,-500.0,0.00041424,30]
[310963370,1704835989999,-964.23,0.00041424,30]
[310963371,1704835990009,-500.0,0.00041424,30]
[310963372,1704835990019,-1586.56,0.00041424,30]
[310963373,1704835990029,-3056.94,0.00041424,30]
[310963374,1704835990038,-500.0,0.00041424,7]
[310963375,1704835990048,-500.0,0.00041424,30]
[310963376,1704835990058,-500.0,0.00041424,30]
[310963377,1704835990067,-1370.1,0.00041424,30]
[310963378,1704835990077,-500.0,0.00041424,30]
[310963379,1704835990086,-3469.89,0.00041424,30]
[310963380,1704835990096,-500.0,0.00041424,30]
[310963381,1704835990105,-648.93,0.00041424,30]
[310963382,1704835990114,-994.23,0.00041424,30]
[310963383,1704835990124,-500.0,0.00041424,30]
[310963384,1704835990134,-500.0,0.00041424,30]
[310963385,1704835990144,-500.0,0.00041424,30]
[310963386,1704835990155,-500.0,0.00041424,30]
[310963387,1704835990166,-500.0,0.00041424,30]
[310963388,1704835990175,-500.0,0.00041424,30]
[310963389,1704835990186,-3974.35,0.00041424,30]
[310963390,1704835990195,-575.24,0.00041424,30]
[310963391,1704835990206,-1208.62,0.00041424,30]
[310963392,1704835990216,-500.0,0.00041424,30]
[310963393,1704835990226,-500.0,0.00041424,30]
[310963394,1704835990236,-500.0,0.00041424,30]
[310963395,1704835990245,-500.0,0.00041424,30]
[310963396,1704835990255,-840.42,0.00041424,30]
[310963397,1704835990265,-442.62,0.00041424,30]
[310963398,1704835990276,-20052.88,0.00041424,30]
[310963399,1704835990286,-500.0,0.00041424,30]
[310963400,1704835990297,-500.0,0.00041424,30]
[310963401,1704835990307,-500.0,0.00041424,30]
[310963402,1704835990318,-1154.2,0.00041424,30]
[310963403,1704835990328,-3280.13,0.00041424,30]
[310963404,1704835990341,-1336.18,0.00041424,30]
[310963405,1704835990350,-3059.66,0.00041424,30]
[310963406,1704835990362,-500.0,0.00041424,30]
[310963407,1704835990373,-500.0,0.00041424,30]
[310963408,1704835990382,-808.78,0.00041424,30]
[310963409,1704835990392,-507.47000436,0.00041424,30]
[310963410,1704835990403,-5796.52,0.00041424,30]
[310963411,1704835990417,-595.48,0.00041424,30]
[310963412,1704835990427,-772.79,0.00041424,30]
[310963413,1704835990437,-1773.57,0.00041424,30]
[310963414,1704835990447,-500.0,0.00041424,30]
[310963415,1704835990456,-1436.73,0.00041424,30]
[310963416,1704835990465,-1274.83,0.00041424,30]
[310963417,1704835990475,-500.0,0.00041424,30]
[310963418,1704835990485,-823.79,0.00041424,30]
[310963419,1704835990494,-500.0,0.00041424,30]
[310963420,1704835990504,-767.78,0.00041424,30]
[310963421,1704835990514,-500.0,0.00041424,30]
[310963422,1704835990524,-500.0,0.00041424,30]
[310963423,1704835990534,-924.78,0.00041424,30]
[310963424,1704835990544,-1944.68,0.00041424,30]
[310963425,1704835990554,-1764.13,0.00041424,30]
[310963426,1704835990564,-10402.25,0.00041424,30]
[310963427,1704835990574,-500.0,0.00041424,30]
[310963428,1704835990585,-500.0,0.00041424,30]
[310963429,1704835990595,-4303.2,0.00041424,30]
[310963430,1704835990604,-4288.57,0.00041424,30]
[310963431,1704835990614,-7059.7,0.00041424,30]
[310963432,1704835990624,-6327.7,0.00041424,30]
[310963433,1704835990634,-1629.67,0.00041424,30]
[310963434,1704835990643,-2082.36,0.00041424,30]
[310963435,1704835990652,-500.0,0.00041424,30]
[310963436,1704835990666,-699.1,0.00041424,30]
[310963437,1704835990676,-737.62,0.00041424,30]
[310963438,1704835990686,-961.05,0.00041424,30]
[310963439,1704835990695,-151.0,0.00041424,7]
[310963440,1704835990707,-151.0,0.00041424,14]
[310963441,1704835990716,-190.450912,0.00041424,14]
[310963442,1704835990726,-190.450912,0.00041424,14]
[310963443,1704835990737,-293.546245,0.00041424,14]
[310963444,1704835990748,-8750.0,0.0004145,5]
[310963445,1704835990760,-703.5150511,0.00041478,2]
[310963446,1704835990769,-1189.3338025,0.00041478,2]
[310963447,1704835990779,-296.0,0.0004148,120]
[310963448,1704835990788,-296.0,0.0004149,120]
[310963449,1704835990798,-187.3,0.00041498,60]
[310963450,1704835990807,-2000.0,0.000415,17]
[310963451,1704835990817,-8750.0,0.000415,5]
[310963452,1704835990832,-500.0,0.00041506,30]
[310963453,1704835990842,-517.06091864,0.00041506,30]
[310963454,1704835990851,-550.54457234,0.00041506,30]
[310963455,1704835990861,-500.0,0.00041506,30]
[310963456,1704835990871,-500.0,0.00041506,30]
[310963457,1704835990881,-500.0,0.00041506,30]
[310963458,1704835990891,-500.0,0.00041506,30]
[310963459,1704835990901,-500.0,0.00041506,30]
[310963460,1704835990916,-519.07,0.00041506,30]
[310963461,1704835990925,-500.0,0.00041506,30]
[310963462,1704835990935,-500.0,0.00041506,30]
[310963463,1704835990944,-500.0,0.00041506,30]
[310963464,1704835990954,-500.0,0.00041506,30]
[310963465,1704835990963,-500.0,0.00041506,30]
[310963466,1704835990973,-500.0,0.00041506,30]
[310963467,1704835990982,-1003.07,0.00041506,6]
[310963468,1704835990992,-500.0,0.00041506,30]
[310963469,1704835991001,-500.0,0.00041506,30]
[310963470,1704835991011,-500.0,0.00041506,30]
[310963471,1704835991020,-599.12,0.00041506,30]
[310963472,1704835991029,-214.53437676,0.00041506,30]
[310963473,1704835991039,-500.0,0.00041506,30]
[310963474,1704835991049,-500.0,0.00041506,30]
[310963475,1704835991059,-500.0,0.00041506,30]
[310963476,1704835991069,-870.95,0.00041506,30]
[310963477,1704835991079,-774.16,0.00041506,30]
[310963478,1704835991089,-500.0,0.00041506,30]
[310963479,1704835991098,-500.0,0.00041506,2]
[310963480,1704835991107,-628.44,0.00041506,30]
[310963481,1704835991117,-500.0,0.00041506,30]
[310963482,1704835991126,-500.0,0.00041506,30]
[310963483,1704835991137,-583.93,0.00041506,30]
[310963484,1704835991146,-500.0,0.00041506,30]
[310963485,1704835991158,-664.43,0.00041506,30]
[310963486,1704835991167,-642.11,0.00041506,30]
[310963487,1704835991176,-1006.44,0.00041506,30]
[310963488,1704835991185,-500.0,0.00041506,30]
[310963489,1704835991195,-785.15,0.00041506,30]
[310963490,1704835991204,-500.0,0.00041506,30]
[310963491,1704835991214,-500.0,0.00041506,30]
[310963492,1704835991223,-500.0,0.00041506,30]
[310963493,1704835991232,-500.0,0.00041506,30]
[310963494,1704835991241,-500.0,0.00041506,30]
[310963495,1704835991251,-500.0,0.00041506,30]
[310963496,1704835991260,-647.85,0.00041506,30]
[310963497,1704835991270,-500.0,0.00041506,30]
[310963498,1704835991279,-1176.3,0.00041506,30]
[310963499,1704835991288,-892.9,0.00041506,30]
[310963500,1704835991298,-446.24516849,0.00041506,30]
[310963501,1704835991307,-524.33538659,0.00041506,30]
[310963502,1704835991317,-163.2557745,0.00041506,30]
[310963503,1704835991326,-500.0,0.00041506,30]
[310963504,1704835991335,-500.0,0.00041506,30]
[310963505,1704835991344,-500.0,0.00041506,30]
[310963506,1704835991354,-500.0,0.00041506,30]
[310963507,1704835991364,-875.0,0.00041506,30]
[310963508,1704835991373,-500.0,0.00041506,30]
[310963509,1704835991382,-500.0,0.00041506,30]
[310963510,1704835991391,-1021.0,0.00041506,30]
[310963511,1704835991406,-500.0,0.00041506,30]
[310963512,1704835991415,-924.33,0.00041506,30]
[310963513,1704835991423,-500.0,0.00041506,30]
[310963514,1704835991432,-552.38,0.00041506,30]
[310963515,1704835991441,-1079.22,0.00041506,30]
[310963516,1704835991451,-500.0,0.00041506,30]
[310963517,1704835991460,-500.0,0.00041506,30]
[310963518,1704835991469,-500.0,0.00041506,30]
[310963519,1704835991479,-500.0,0.00041506,30]
[310963520,1704835991488,-749.02,0.00041506,30]
[310963521,1704835991498,-500.0,0.00041506,30]
[310963522,1704835991507,-500.0,0.00041506,30]
[310963523,1704835991516,-500.0,0.00041506,30]
[310963524,1704835991526,-507.33,0.00041506,30]
[310963525,1704835991535,-500.0,0.00041506,30]
[310963526,1704835991544,-500.0,0.00041506,30]
[310963527,1704835991554,-500.0,0.00041506,30]
[310963528,1704835991563,-500.0,0.00041506,30]
[310963529,1704835991572,-500.0,0.00041506,30]
[310963530,1704835991581,-500.0,0.00041506,30]
[310963531,1704835991590,-500.0,0.00041506,30]
[310963532,1704835991599,-556.06,0.00041506,30]
[310963533,1704835991608,-500.0,0.00041506,30]
[310963534,1704835991617,-500.0,0.00041506,30]
[310963535,1704835991626,-500.0,0.00041506,30]
[310963536,1704835991635,-544.95,0.00041506,30]
[310963537,1704835991644,-500.0,0.00041506,30]
[310963538,1704835991653,-500.0,0.00041506,30]
[310963539,1704835991664,-500.0,0.00041506,30]
[310963540,1704835991674,-889.52,0.00041506,30]
[310963541,1704835991683,-643.58,0.00041506,30]
[310963542,1704835991692,-153.26296521,0.00041506,30]
[310963543,1704835991701,-857.15,0.00041506,30]
[310963544,1704835991710,-549.07,0.00041506,30]
[310963545,1704835991719,-500.0,0.00041506,30]
[310963546,1704835991728,-674.98,0.00041506,30]
[310963547,1704835991737,-500.0,0.00041506,30]
[310963548,1704835991746,-879.09,0.00041506,30]
[310963549,1704835991755,-500.0,0.00041506,30]
[310963550,1704835991765,-525.43,0.00041506,30]
[310963551,1704835991774,-450.54747372,0.00041506,30]
[310963552,1704835991782,-740.92,0.00041506,30]
[310963553,1704835991791,-500.0,0.00041506,30]
[310963554,1704835991800,-500.0,0.00041506,30]
[310963555,1704835991809,-894.54,0.00041506,30]
[310963556,1704835991818,-500.0,0.00041506,30]
[310963557,1704835991827,-1210.61,0.00041506,30]
[310963558,1704835991836,-500.0,0.00041506,30]
[310963559,1704835991845,-1262.57,0.00041506,30]
[310963560,1704835991855,-500.0,0.00041506,30]
[310963561,1704835991864,-767.71,0.00041506,30]
[310963562,1704835991873,-571.45,0.00041506,30]
[310963563,1704835991882,-500.0,0.00041506,30]
[310963564,1704835991891,-500.0,0.00041506,30]
[310963565,1704835991900,-1000.0,0.00041506,30]
[310963566,1704835991911,-500.0,0.00041506,30]
[310963567,1704835991921,-1012.62,0.00041506,30]
[310963568,1704835991930,-568.08,0.00041506,30]
[310963569,1704835991939,-500.0,0.00041506,30]
[310963570,1704835991949,-1247.69,0.00041506,30]
[310963571,1704835991958,-500.0,0.00041506,30]
[310963572,1704835991967,-504.29,0.00041506,30]
[310963573,1704835991976,-744.29,0.00041506,30]
[310963574,1704835991986,-500.0,0.00041506,30]
[310963575,1704835991995,-500.0,0.00041506,30]
[310963576,1704835992004,-1071.67,0.00041506,30]
[310963577,1704835992013,-500.0,0.00041506,30]
[310963578,1704835992022,-1041.65,0.00041506,30]
[310963579,1704835992032,-597.48,0.00041506,30]
[310963580,1704835992042,-500.0,0.00041506,30]
[310963581,1704835992051,-670.96,0.00041506,30]
[310963582,1704835992061,-500.0,0.00041506,30]
[310963583,1704835992070,-992.5,0.00041506,30]
[310963584,1704835992080,-500.0,0.00041506,30]
[310963585,1704835992089,-500.0,0.00041506,30]
[310963586,1704835992098,-1379.24,0.00041506,30]
[310963587,1704835992108,-500.0,0.00041506,30]
[310963588,1704835992117,-891.81,0.00041506,30]
[310963589,1704835992126,-500.0,0.00041506,30]
[310963590,1704835992136,-584.81343152,0.00041506,30]
[310963591,1704835992146,-3464.95,0.00041506,30]
[310963592,1704835992160,-500.0,0.00041506,30]
[310963593,1704835992170,-838.55,0.00041506,30]
[310963594,1704835992180,-660.81,0.00041506,30]
[310963595,1704835992190,-1525.96,0.00041506,30]
[310963596,1704835992199,-940.28,0.00041506,30]
[310963597,1704835992209,-797.09,0.00041506,30]
[310963598,1704835992218,-500.0,0.00041506,30]
[310963599,1704835992227,-500.0,0.00041506,30]
[310963600,1704835992238,-500.0,0.00041506,30]
[310963601,1704835992247,-500.0,0.00041506,30]
[310963602,1704835992258,-500.0,0.00041506,30]
[310963603,1704835992267,-500.0,0.00041506,30]
[310963604,1704835992277,-1021.78,0.00041506,30]
[310963605,1704835992286,-500.0,0.00041506,30]
[310963606,1704835992296,-1950.33,0.00041506,30]
[310963607,1704835992306,-538.34965173,0.00041506,30]
[310963608,1704835992315,-500.0,0.00041506,30]
[310963609,1704835992325,-765.32,0.00041506,30]
[310963610,1704835992336,-624.2,0.00041506,30]
[310963611,1704835992345,-1106.38,0.00041506,30]
[310963612,1704835992356,-581.2,0.00041506,30]
[310963613,1704835992365,-500.0,0.00041506,30]
[310963614,1704835992375,-779.64,0.00041506,30]
[310963615,1704835992385,-500.0,0.00041506,30]
[310963616,1704835992394,-500.0,0.00041506,30]
[310963617,1704835992404,-410.98913968,0.00041506,30]
[310963618,1704835992417,-500.0,0.00041506,30]
[310963619,1704835992426,-742.05,0.00041506,30]
[310963620,1704835992435,-557.57,0.00041506,30]
[310963621,1704835992445,-578.59,0.00041506,30]
[310963622,1704835992454,-500.0,0.00041506,30]
[310963623,1704835992464,-500.0,0.00041506,30]
[310963624,1704835992474,-500.0,0.00041506,30]
[310963625,1704835992484,-718.23,0.00041506,30]
[310963626,1704835992493,-500.0,0.00041506,30]
[310963627,1704835992503,-500.0,0.00041506,30]
[310963628,1704835992513,-500.0,0.00041506,30]
[310963629,1704835992523,-500.0,0.00041506,30]
[310963630,1704835992532,-500.0,0.00041506,30]
[310963631,1704835992542,-610.11341543,0.00041506,30]
[310963632,1704835992552,-500.0,0.00041506,30]
[310963633,1704835992562,-442.25704788,0.00041506,30]
[310963634,1704835992573,-1681.49,0.00041506,30]
[310963635,1704835992582,-667.7,0.00041506,30]
[310963636,1704835992592,-500.0,0.00041506,30]
[310963637,1704835992603,-500.0,0.00041506,30]
[310963638,1704835992613,-500.0,0.00041506,30]
[310963639,1704835992623,-803.72,0.00041506,30]
[310963640,1704835992632,-691.09,0.00041506,30]
[310963641,1704835992642,-820.84,0.00041506,30]
[310963642,1704835992651,-500.0,0.00041506,30]
[310963643,1704835992664,-500.0,0.00041506,7]
[310963644,1704835992673,-500.0,0.00041506,30]
[310963645,1704835992682,-500.0,0.00041506,30]
[310963646,1704835992692,-612.42,0.00041506,30]
[310963647,1704835992702,-500.0,0.00041506,30]
[310963648,1704835992712,-500.0,0.00041506,30]
[310963649,1704835992721,-500.0,0.00041506,30]
[310963650,1704835992731,-554.71228746,0.00041506,30]
[310963651,1704835992740,-166.20814101,0.00041506,30]
[310963652,1704835992750,-500.0,0.00041506,30]
[310963653,1704835992760,-700.31,0.00041506,30]
[310963654,1704835992769,-500.0,0.00041506,30]
[310963655,1704835992779,-1173.84,0.00041506,30]
[310963656,1704835992789,-890.72,0.00041506,30]
[310963657,1704835992799,-519.17,0.00041506,30]
[310963658,1704835992808,-681.49,0.00041506,30]
[310963659,1704835992817,-500.0,0.00041506,30]
[310963660,1704835992827,-627.48,0.00041506,30]
[310963661,1704835992836,-1141.38,0.00041506,30]
[310963662,1704835992846,-596.45,0.00041506,30]
[310963663,1704835992855,-1148.32,0.00041506,30]
[310963664,1704835992865,-616.05,0.00041506,30]
[310963665,1704835992875,-500.0,0.00041506,30]
[310963666,1704835992884,-1154.54,0.00041506,30]
[310963667,1704835992894,-500.0,0.00041506,30]
[310963668,1704835992903,-594.77863299,0.00041506,30]
[310963669,1704835992915,-500.0,0.00041506,30]
[310963670,1704835992924,-1370.57,0.00041506,30]
[310963671,1704835992934,-622.7,0.00041506,30]